[Event "Nové Hrady - Blesk"]
[Site "Nové Hrady, Czech Republic"]
[Date "2023.08.17"]
[Round "9.9"]
[White "Slabý, Matěj"]
[Black "Voršilka, Jiří"]
[Result "1-0"]
[TimeControl "2x3+2s"]
[WhiteFideId "23734876"]
[BlackFideId "365149"]
[WhiteElo "1894"]
[BlackElo "1463"]

1. e4 {[%clk 00:03:00]} {[%emt 00:00:05]} e5 {[%clk 00:03:03]} 2. Bc4 {[%clk
00:03:00]} {[%emt 00:00:03]} Nf6 {[%clk 00:03:04]} 3. d3 {[%clk 00:03:01]} Nc6
{[%clk 00:02:59]} {[%emt 00:00:07]} 4. Nf3 {[%clk 00:03:02]} Bc5 {[%clk
00:02:55]} {[%emt 00:00:08]} 5. O-O {[%clk 00:02:57]} {[%emt 00:00:06]} O-O
{[%clk 00:02:55]} {[%emt 00:00:02]} 6. c3 {[%emt 00:00:03]} a5 {[%clk
00:02:45]} {[%emt 00:00:10]} 7. d4 {[%clk 00:02:41]} {[%emt 00:00:19]} exd4
{[%clk 00:02:45]} {[%emt 00:00:03]} 8. cxd4 {[%clk 00:02:42]} {[%emt 00:00:01]}
Bb6 {[%clk 00:02:40]} {[%emt 00:00:06]} 9. Nc3 {[%clk 00:02:42]} {[%emt
00:00:02]} d6 {[%clk 00:02:40]} {[%emt 00:00:02]} 10. h3 {[%clk 00:02:43]}
{[%emt 00:00:02]} Bd7 {[%clk 00:02:30]} {[%emt 00:00:12]} 11. a3 {[%clk
00:02:41]} {[%emt 00:00:04]} Re8 {[%clk 00:02:28]} {[%emt 00:00:03]} 12. Re1
{[%clk 00:02:41]} {[%emt 00:00:02]} Ne7 {[%clk 00:02:18]} {[%emt 00:00:12]} 13.
Bg5 {[%clk 00:02:41]} {[%emt 00:00:02]} h6 {[%clk 00:02:03]} {[%emt 00:00:17]}
14. Bxf6 {[%clk 00:02:41]} {[%emt 00:00:02]} gxf6 {[%clk 00:02:04]} 15. Qd2
{[%clk 00:02:42]} Kh7 {[%clk 00:02:03]} {[%emt 00:00:05]} 16. Bd3 {[%clk
00:02:37]} {[%emt 00:00:07]} Kg7 {[%clk 00:02:01]} {[%emt 00:00:04]} 17. Qf4
{[%clk 00:02:16]} {[%emt 00:00:24]} Ng6 {[%clk 00:01:57]} {[%emt 00:00:05]} 18.
Qg3 {[%clk 00:02:17]} c5 {[%clk 00:01:47]} {[%emt 00:00:14]} 19. Qxd6 {[%clk
00:02:06]} {[%emt 00:00:12]} Qc7 {[%clk 00:01:40]} {[%emt 00:00:09]} 20. Qxc7
{[%clk 00:02:04]} {[%emt 00:00:04]} Bxc7 {[%clk 00:01:41]} {[%emt 00:00:02]} 21.
dxc5 {[%clk 00:02:04]} Ne5 {[%clk 00:01:33]} {[%emt 00:00:11]} 22. Be2 {[%clk
00:02:01]} {[%emt 00:00:04]} Bc6 {[%clk 00:01:27]} {[%emt 00:00:08]} 23. Rad1
{[%clk 00:01:58]} {[%emt 00:00:05]} Rad8 {[%clk 00:01:28]} {[%emt 00:00:01]} 24.
Nd5 {[%clk 00:01:59]} {[%emt 00:00:02]} Rd7 {[%clk 00:01:19]} {[%emt 00:00:11]}
25. Nxc7 {[%clk 00:01:53]} {[%emt 00:00:08]} Rxc7 {[%clk 00:01:19]} 26. b4
{[%clk 00:01:54]} axb4 {[%clk 00:01:19]} {[%emt 00:00:04]} 27. axb4 {[%clk
00:01:55]} Bd7 {[%clk 00:01:10]} {[%emt 00:00:12]} 28. Nxe5 {[%clk 00:01:52]}
{[%emt 00:00:05]} fxe5 {[%clk 00:01:10]} {[%emt 00:00:02]} 29. Rd6 {[%clk
00:01:48]} {[%emt 00:00:07]} Be6 {[%clk 00:01:09]} {[%emt 00:00:03]} 30. Bb5
{[%clk 00:01:47]} {[%emt 00:00:03]} Ra8 {[%clk 00:01:04]} {[%emt 00:00:07]} 31.
Red1 {[%clk 00:01:40]} {[%emt 00:00:08]} Ra2 {[%clk 00:01:02]} {[%emt
00:00:05]} 32. Bd7 {[%clk 00:01:36]} {[%emt 00:00:05]} Bxd7 {[%clk 00:00:52]}
{[%emt 00:00:12]} 33. Rxd7 {[%clk 00:01:37]} Rxd7 {[%clk 00:00:47]} {[%emt
00:00:08]} 34. Rxd7 {[%clk 00:01:38]} {[%emt 00:00:02]} 1-0

[Event "Nové Hrady - Blesk"]
[Site "Nové Hrady, Czech Republic"]
[Date "2023.08.17"]
[Round "9.10"]
[White "Dudkova, Danka"]
[Black "Dudková, Josefína"]
[Result "1/2-1/2"]
[TimeControl "2x3+2s"]
[WhiteFideId "23718439"]
[BlackFideId "23712350"]
[WhiteElo "1650"]
[BlackElo "1437"]

1. h3 {[%clk 00:03:03]} {[%emt 00:01:54]} a6 {[%clk 00:03:04]} {[%emt
00:00:01]} 2. g3 {[%clk 00:03:04]} b6 {[%clk 00:03:05]} 3. f3 {[%clk 00:03:05]}
c6 {[%clk 00:03:06]} 4. e3 {[%clk 00:03:06]} d6 {[%clk 00:03:07]} 5. d3 {[%clk
00:03:07]} e6 {[%clk 00:03:08]} 6. c3 {[%clk 00:03:08]} f6 {[%clk 00:03:09]}
{[%emt 00:00:08]} 7. b3 {[%clk 00:03:09]} g6 {[%clk 00:03:10]} 8. a3 {[%clk
00:03:10]} h6 {[%clk 00:03:11]} 9. Nd2 {[%clk 00:03:10]} {[%emt 00:00:05]} Ne7
{[%clk 00:03:12]} {[%emt 00:00:03]} 10. Ne2 {[%clk 00:03:11]} Nd7 {[%clk
00:03:13]} 11. Bg2 {[%clk 00:03:11]} {[%emt 00:00:03]} Bb7 {[%clk 00:03:13]}
{[%emt 00:00:02]} 12. Bb2 {[%clk 00:03:12]} Bg7 {[%clk 00:03:14]} {[%emt
00:00:02]} 13. Ra2 {[%clk 00:03:13]} Ra7 {[%clk 00:03:15]} {[%emt 00:00:03]} 14.
O-O {[%clk 00:03:12]} {[%emt 00:00:03]} O-O {[%clk 00:03:15]} {[%emt 00:00:02]}
15. Qc2 {[%clk 00:03:12]} {[%emt 00:00:01]} 1/2-1/2

[Event "Nové Hrady - Blesk"]
[Site "Nové Hrady, Czech Republic"]
[Date "2023.08.18"]
[Round "10.1"]
[White "Pulpan, Jakub"]
[Black "Šimůnek, Jakub Šimon"]
[Result "1-0"]
[TimeControl "2x3+2s"]
[WhiteFideId "302759"]
[BlackFideId "23709464"]
[WhiteElo "2452"]
[BlackElo "1921"]

1. Nf3 {[%clk 00:03:03]} {[%emt 00:04:54]} d5 {[%clk 00:03:04]} 2. b3 {[%clk
00:03:04]} Nf6 {[%clk 00:03:03]} {[%emt 00:00:05]} 3. Bb2 {[%clk 00:03:05]}
{[%emt 00:00:01]} c6 {[%clk 00:03:05]} 4. c4 {[%clk 00:03:03]} {[%emt
00:00:04]} Bf5 {[%clk 00:03:01]} {[%emt 00:00:05]} 5. Nh4 {[%clk 00:03:01]}
{[%emt 00:00:05]} Be4 {[%clk 00:03:01]} {[%emt 00:00:03]} 6. d3 {[%clk
00:03:01]} Bg6 {[%clk 00:03:01]} {[%emt 00:00:02]} 7. Nxg6 {[%emt 00:00:03]}
hxg6 {[%emt 00:00:01]} 8. g3 {[%clk 00:03:00]} {[%emt 00:00:02]} Nbd7 {[%clk
00:03:01]} {[%emt 00:00:04]} 9. Bg2 {[%clk 00:03:00]} {[%emt 00:00:01]} e6
{[%clk 00:03:00]} {[%emt 00:00:04]} 10. Nd2 {[%clk 00:02:58]} {[%emt 00:00:03]}
Bd6 {[%clk 00:02:56]} {[%emt 00:00:06]} 11. e3 {[%clk 00:02:58]} {[%emt
00:00:02]} Qc7 {[%clk 00:02:55]} {[%emt 00:00:03]} 12. Qe2 {[%clk 00:02:46]}
{[%emt 00:00:13]} Ne5 {[%clk 00:02:42]} {[%emt 00:00:15]} 13. Nf3 {[%clk
00:02:09]} {[%emt 00:00:39]} Neg4 {[%clk 00:02:14]} {[%emt 00:00:31]} 14. h3
{[%clk 00:01:56]} {[%emt 00:00:15]} Ne5 {[%clk 00:02:11]} {[%emt 00:00:05]} 15.
Kf1 {[%clk 00:01:32]} {[%emt 00:00:26]} O-O-O {[%clk 00:01:25]} {[%emt
00:00:48]} 16. c5 {[%clk 00:01:26]} {[%emt 00:00:08]} Bxc5 {[%clk 00:01:01]}
{[%emt 00:00:25]} 17. Bxe5 {[%emt 00:00:05]} Bd6 18. Qb2 {[%clk 00:01:18]}
{[%emt 00:00:07]} Rh7 {[%clk 00:00:56]} {[%emt 00:00:09]} 19. Bxd6 {[%clk
00:01:17]} {[%emt 00:00:03]} Qxd6 {[%clk 00:00:56]} {[%emt 00:00:02]} 20. Ng5
{[%clk 00:01:18]} 1-0

[Event "Nové Hrady - Blesk"]
[Site "Nové Hrady, Czech Republic"]
[Date "2023.08.18"]
[Round "10.2"]
[White "Prinz, Hubert"]
[Black "Zeman, Matyas"]
[Result "0-1"]
[TimeControl "2x3+2s"]
[WhiteFideId "1639447"]
[BlackFideId "364398"]
[WhiteElo "1884"]
[BlackElo "2254"]

1. d4 {[%clk 00:03:04]} {[%emt 00:05:16]} Nf6 {[%clk 00:03:03]} {[%emt
00:00:02]} 2. Nf3 {[%clk 00:03:05]} e6 3. e3 {[%emt 00:00:02]} d5 {[%clk
00:03:05]} {[%emt 00:00:01]} 4. Bd3 {[%clk 00:03:08]} c5 {[%clk 00:03:06]}
{[%emt 00:00:02]} 5. c3 {[%clk 00:03:09]} Nc6 {[%clk 00:03:07]} 6. Nbd2 {[%clk
00:03:09]} {[%emt 00:00:03]} Bd6 {[%clk 00:03:08]} 7. O-O {[%clk 00:03:03]}
{[%emt 00:00:09]} O-O {[%clk 00:03:09]} {[%emt 00:00:02]} 8. e4 {[%clk
00:03:03]} cxd4 {[%clk 00:03:04]} {[%emt 00:00:07]} 9. Nxd4 {[%clk 00:03:02]}
{[%emt 00:00:04]} e5 {[%clk 00:02:37]} {[%emt 00:00:28]} 10. Nxc6 {[%clk
00:02:56]} {[%emt 00:00:08]} bxc6 {[%clk 00:02:38]} {[%emt 00:00:01]} 11. exd5
{[%clk 00:02:39]} {[%emt 00:00:19]} cxd5 {[%clk 00:02:39]} 12. f3 {[%clk
00:02:40]} Qb6+ {[%clk 00:02:23]} {[%emt 00:00:20]} 13. Kh1 {[%clk 00:02:40]}
{[%emt 00:00:02]} Bb7 {[%clk 00:02:24]} {[%emt 00:00:01]} 14. Re1 {[%clk
00:02:35]} {[%emt 00:00:07]} Rfe8 {[%clk 00:02:26]} 15. Nb3 {[%clk 00:02:25]}
{[%emt 00:00:13]} e4 {[%clk 00:02:25]} {[%emt 00:00:03]} 16. Be3 {[%clk
00:02:19]} {[%emt 00:00:08]} Qc7 {[%clk 00:02:25]} 17. fxe4 {[%clk 00:02:17]}
{[%emt 00:00:04]} dxe4 {[%clk 00:02:25]} {[%emt 00:00:03]} 18. Be2 {[%clk
00:02:09]} {[%emt 00:00:09]} Bxh2 {[%clk 00:02:23]} {[%emt 00:00:05]} 19. Rf1
{[%clk 00:01:59]} {[%emt 00:00:12]} Rad8 {[%clk 00:02:18]} {[%emt 00:00:07]} 20.
Qe1 {[%clk 00:01:55]} {[%emt 00:00:05]} Bg3 {[%clk 00:02:19]} 21. Bf2 {[%clk
00:01:55]} {[%emt 00:00:03]} Bxf2 {[%clk 00:02:19]} {[%emt 00:00:03]} 22. Qxf2
{[%clk 00:01:54]} {[%emt 00:00:03]} e3 {[%clk 00:02:20]} 23. Qf4 {[%clk
00:01:50]} {[%emt 00:00:06]} Qxf4 {[%clk 00:02:07]} {[%emt 00:00:15]} 24. Rxf4
{[%clk 00:01:51]} Ne4 {[%clk 00:02:09]} 25. Nd4 {[%clk 00:01:47]} {[%emt
00:00:08]} Rxd4 {[%clk 00:02:06]} {[%emt 00:00:04]} 26. cxd4 {[%clk 00:01:46]}
{[%emt 00:00:04]} Ng3+ {[%clk 00:02:07]} 27. Kh2 {[%clk 00:01:42]} {[%emt
00:00:06]} Nxe2 {[%emt 00:00:11]} 28. Rff1 {[%clk 00:01:34]} Nxd4 {[%emt
00:00:35]} 29. Rac1 {[%emt 00:00:17]} f6 {[%emt 00:00:11]} 30. Rc4 {[%emt
00:00:07]} Ba6 {[%clk 00:01:47]} {[%emt 00:00:02]} 31. Rxd4 {[%clk 00:00:51]}
{[%emt 00:00:03]} Bxf1 {[%emt 00:00:06]} 32. Rd1 {[%clk 00:00:47]} {[%emt
00:00:02]} e2 {[%clk 00:01:47]} {[%emt 00:00:02]} 33. Re1 {[%clk 00:00:48]} Rd8
{[%clk 00:01:49]} 34. Kg3 {[%clk 00:00:49]} Rd1 {[%clk 00:01:50]} 35. Kf2
{[%clk 00:00:51]} Rxe1 {[%clk 00:01:50]} 36. Kxe1 {[%clk 00:00:51]} {[%emt
00:00:06]} Bxg2 {[%emt 00:00:04]} 37. Kxe2 Bd5 {[%clk 00:01:50]} {[%emt
00:00:02]} 38. a3 {[%clk 00:00:53]} Bb3 {[%clk 00:01:51]} {[%emt 00:00:02]} 39.
Kd3 h5 40. Kc3 {[%clk 00:00:54]} h4 {[%clk 00:01:53]} 41. Kxb3 {[%clk
00:00:57]} h3 {[%clk 00:01:55]} 42. Ka4 {[%clk 00:00:58]} h2 {[%clk 00:01:56]}
43. b4 {[%clk 00:00:59]} h1=Q 44. Ka5 {[%emt 00:00:07]} Qc6 {[%clk 00:01:55]}
{[%emt 00:00:02]} 45. b5 {[%clk 00:01:01]} Qc5 {[%clk 00:01:53]} {[%emt
00:00:06]} 46. a4 {[%clk 00:00:59]} {[%emt 00:00:05]} g5 {[%clk 00:01:54]} 47.
Ka6 {[%clk 00:00:58]} {[%emt 00:00:02]} Qb6# 0-1

[Event "Nové Hrady - Blesk"]
[Site "Nové Hrady, Czech Republic"]
[Date "2023.08.18"]
[Round "10.3"]
[White "Hak, David"]
[Black "Vybiral, Zdenek"]
[Result "1-0"]
[TimeControl "2x3+2s"]
[WhiteFideId "377007"]
[BlackFideId "305200"]
[WhiteElo "2037"]
[BlackElo "2158"]

1. d4 {[%clk 00:03:03]} Nf6 {[%clk 00:03:03]} 2. c4 {[%clk 00:03:05]} e5 {[%clk
00:03:04]} {[%emt 00:00:03]} 3. dxe5 {[%clk 00:03:04]} {[%emt 00:00:03]} Ng4
{[%clk 00:03:05]} 4. Nf3 {[%clk 00:03:01]} {[%emt 00:00:06]} Bc5 {[%clk
00:03:06]} {[%emt 00:00:02]} 5. e3 {[%clk 00:02:55]} {[%emt 00:00:07]} Nc6
{[%clk 00:03:06]} 6. a3 {[%clk 00:02:38]} {[%emt 00:00:20]} a5 {[%clk
00:03:07]} {[%emt 00:00:02]} 7. Nc3 {[%clk 00:02:34]} {[%emt 00:00:06]} O-O
{[%clk 00:02:59]} {[%emt 00:00:09]} 8. Be2 {[%clk 00:02:15]} {[%emt 00:00:20]}
Ncxe5 {[%clk 00:02:59]} {[%emt 00:00:02]} 9. Nxe5 {[%clk 00:02:06]} {[%emt
00:00:12]} Nxe5 {[%clk 00:02:59]} 10. O-O {[%clk 00:02:04]} {[%emt 00:00:05]}
Re8 {[%clk 00:02:57]} {[%emt 00:00:04]} 11. b3 {[%clk 00:01:57]} {[%emt
00:00:09]} Ra6 {[%clk 00:02:48]} {[%emt 00:00:11]} 12. Ne4 {[%clk 00:01:35]}
{[%emt 00:00:24]} Ba7 {[%clk 00:02:42]} {[%emt 00:00:07]} 13. Ng3 {[%clk
00:01:32]} {[%emt 00:00:06]} Qh4 {[%clk 00:01:53]} {[%emt 00:00:52]} 14. Nf5
{[%clk 00:01:11]} {[%emt 00:00:22]} Qf6 {[%clk 00:01:50]} {[%emt 00:00:05]} 15.
Nd4 {[%clk 00:00:59]} {[%emt 00:00:15]} Rd6 {[%clk 00:01:28]} {[%emt 00:00:24]}
16. Qc2 {[%clk 00:00:44]} {[%emt 00:00:16]} Nc6 {[%clk 00:00:32]} {[%emt
00:00:59]} 17. Nxc6 {[%clk 00:00:28]} {[%emt 00:00:17]} dxc6 {[%clk 00:00:33]}
18. Bb2 {[%clk 00:00:29]} Qf5 {[%clk 00:00:32]} {[%emt 00:00:04]} 19. Qc3
{[%clk 00:00:25]} {[%emt 00:00:06]} f6 {[%clk 00:00:11]} {[%emt 00:00:23]} 20.
Rad1 {[%clk 00:00:22]} {[%emt 00:00:05]} Red8 {[%clk 00:00:12]} {[%emt
00:00:01]} 21. Rxd6 {[%clk 00:00:13]} {[%emt 00:00:11]} Rxd6 {[%clk 00:00:12]}
{[%emt 00:00:01]} 22. b4 {[%emt 00:00:03]} axb4 {[%clk 00:00:12]} 23. axb4
{[%clk 00:00:15]} c5 {[%clk 00:00:09]} {[%emt 00:00:06]} 24. b5 {[%clk
00:00:16]} {[%emt 00:00:02]} Bb6 {[%clk 00:00:10]} 25. Ra1 {[%clk 00:00:17]}
{[%emt 00:00:02]} Be6 {[%clk 00:00:07]} {[%emt 00:00:05]} 26. Bf3 {[%clk
00:00:15]} {[%emt 00:00:04]} c6 {[%clk 00:00:05]} {[%emt 00:00:04]} 27. bxc6
{[%clk 00:00:15]} bxc6 {[%clk 00:00:06]} {[%emt 00:00:02]} 28. h3 {[%clk
00:00:15]} {[%emt 00:00:02]} h5 {[%clk 00:00:06]} 29. Ra6 {[%clk 00:00:16]} Bc7
{[%clk 00:00:06]} {[%emt 00:00:02]} 30. Ra7 {[%clk 00:00:15]} {[%emt 00:00:03]}
Rd7 {[%clk 00:00:05]} {[%emt 00:00:03]} 31. Ra8+ {[%clk 00:00:10]} {[%emt
00:00:07]} Kf7 {[%clk 00:00:05]} {[%emt 00:00:02]} 32. Qc1 {[%clk 00:00:09]}
{[%emt 00:00:02]} Be5 {[%clk 00:00:00]} {[%emt 00:00:07]} 33. Bxc6 {[%clk
00:00:09]} {[%emt 00:00:03]} Bxb2 {[%clk 00:00:00]} {[%emt 00:00:02]} 34. Qxb2
{[%clk 00:00:09]} Rd1+ {[%clk 00:00:00]} 35. Kh2 {[%clk 00:00:09]} Qe5+ {[%clk
00:00:00]} 36. Qxe5 {[%clk 00:00:09]} {[%emt 00:00:06]} fxe5 {[%clk 00:00:00]}
1-0

[Event "Nové Hrady - Blesk"]
[Site "Nové Hrady, Czech Republic"]
[Date "2023.08.18"]
[Round "10.4"]
[White "Steinbauer, Sebastian"]
[Black "Babula, Milan"]
[Result "0-1"]
[TimeControl "2x3+2s"]
[WhiteFideId "399272"]
[BlackFideId "300632"]
[WhiteElo "1660"]
[BlackElo "2176"]

1. e4 {[%clk 00:03:02]} {[%emt 00:00:02]} Nc6 {[%clk 00:03:03]} {[%emt
00:00:02]} 2. d4 {[%clk 00:03:02]} d5 {[%clk 00:03:04]} {[%emt 00:00:02]} 3.
exd5 {[%clk 00:03:02]} Qxd5 {[%clk 00:03:04]} 4. Nf3 {[%clk 00:03:03]} {[%emt
00:00:04]} Bg4 {[%clk 00:03:05]} 5. Be3 {[%clk 00:02:59]} {[%emt 00:00:07]}
O-O-O {[%clk 00:02:46]} {[%emt 00:00:21]} 6. Nc3 {[%clk 00:02:59]} {[%emt
00:00:03]} Qa5 {[%clk 00:02:24]} {[%emt 00:00:23]} 7. Be2 {[%clk 00:02:43]}
{[%emt 00:00:18]} Nf6 {[%clk 00:02:24]} {[%emt 00:00:02]} 8. h3 {[%clk
00:02:05]} {[%emt 00:00:41]} Bxf3 {[%clk 00:01:58]} {[%emt 00:00:28]} 9. Bxf3
{[%clk 00:02:04]} {[%emt 00:00:03]} e5 {[%clk 00:01:40]} {[%emt 00:00:20]} 10.
Bxc6 {[%clk 00:01:56]} {[%emt 00:00:09]} bxc6 {[%clk 00:01:41]} {[%emt
00:00:02]} 11. Qf3 {[%clk 00:00:26]} {[%emt 00:01:32]} exd4 {[%clk 00:01:19]}
{[%emt 00:00:23]} 12. Qxc6 {[%clk 00:00:26]} {[%emt 00:00:02]} dxc3 {[%clk
00:01:06]} {[%emt 00:00:16]} 13. O-O {[%clk 00:00:11]} {[%emt 00:00:17]} cxb2
{[%clk 00:00:13]} {[%emt 00:00:54]} 14. Rad1 {[%clk 00:00:12]} {[%emt
00:00:02]} Bd6 {[%clk 00:00:14]} 15. Bf4 {[%clk 00:00:04]} {[%emt 00:00:09]}
Qb6 {[%clk 00:00:12]} {[%emt 00:00:04]} 16. Qc4 {[%clk 00:00:04]} {[%emt
00:00:02]} Bxf4 {[%clk 00:00:11]} {[%emt 00:00:03]} 17. Qxf4 {[%clk 00:00:05]}
Rxd1 {[%clk 00:00:11]} {[%emt 00:00:03]} 18. Rxd1 {[%clk 00:00:06]} b1=Q {[%clk
00:00:11]} {[%emt 00:00:03]} 19. Qf5+ {[%clk 00:00:05]} {[%emt 00:00:03]} Kb8
{[%clk 00:00:12]} {[%emt 00:00:02]} 0-1

[Event "Nové Hrady - Blesk"]
[Site "Nové Hrady, Czech Republic"]
[Date "2023.08.18"]
[Round "10.5"]
[White "Papacek, Stepan"]
[Black "Slabý, Matěj"]
[Result "1-0"]
[TimeControl "2x3+2s"]
[WhiteFideId "301035"]
[BlackFideId "23734876"]
[WhiteElo "2137"]
[BlackElo "1894"]

1. e4 {[%emt 00:01:14]} c6 {[%emt 00:00:02]} 2. c4 {[%clk 00:03:04]} d5 {[%clk
00:03:04]} {[%emt 00:00:01]} 3. exd5 {[%clk 00:03:04]} cxd5 {[%clk 00:03:05]} 4.
cxd5 {[%clk 00:03:05]} Nf6 {[%clk 00:03:06]} {[%emt 00:00:05]} 5. Nc3 {[%clk
00:03:06]} Nxd5 {[%clk 00:03:07]} {[%emt 00:00:02]} 6. Nf3 {[%clk 00:03:07]}
Nc6 {[%clk 00:03:07]} {[%emt 00:00:02]} 7. Bb5 {[%clk 00:03:07]} Bg4 {[%clk
00:03:04]} {[%emt 00:00:06]} 8. Qa4 {[%clk 00:02:59]} {[%emt 00:00:10]} Nxc3
{[%clk 00:02:35]} {[%emt 00:00:31]} 9. Bxc6+ {[%clk 00:02:58]} {[%emt
00:00:03]} bxc6 {[%clk 00:02:35]} {[%emt 00:00:01]} 10. Qxc6+ {[%clk 00:02:58]}
{[%emt 00:00:02]} Bd7 {[%clk 00:02:35]} {[%emt 00:00:03]} 11. Qxc3 {[%clk
00:02:58]} {[%emt 00:00:02]} Rc8 {[%clk 00:02:33]} {[%emt 00:00:03]} 12. Qd4
{[%clk 00:02:34]} {[%emt 00:00:26]} Qb6 {[%clk 00:02:22]} {[%emt 00:00:14]} 13.
O-O {[%clk 00:02:25]} {[%emt 00:00:09]} Qxd4 {[%clk 00:02:18]} {[%emt
00:00:07]} 14. Nxd4 {[%clk 00:02:26]} e6 {[%clk 00:02:20]} 15. d3 {[%clk
00:02:17]} {[%emt 00:00:12]} Bc5 {[%clk 00:01:55]} {[%emt 00:00:27]} 16. Be3
{[%clk 00:02:11]} {[%emt 00:00:09]} O-O {[%clk 00:01:46]} {[%emt 00:00:10]} 17.
Rac1 {[%clk 00:02:02]} {[%emt 00:00:11]} Bb6 {[%clk 00:01:26]} {[%emt
00:00:22]} 18. Rfd1 {[%clk 00:01:51]} {[%emt 00:00:13]} Rfd8 {[%clk 00:01:25]}
{[%emt 00:00:03]} 19. Kf1 {[%clk 00:01:46]} {[%emt 00:00:07]} Kf8 {[%clk
00:00:57]} {[%emt 00:00:30]} 20. Ke2 {[%clk 00:01:41]} {[%emt 00:00:06]} Ke7
{[%clk 00:00:48]} {[%emt 00:00:12]} 21. h3 {[%clk 00:01:35]} {[%emt 00:00:07]}
e5 {[%clk 00:00:30]} {[%emt 00:00:21]} 22. Nf3 {[%clk 00:01:30]} {[%emt
00:00:06]} f6 {[%clk 00:00:30]} {[%emt 00:00:02]} 23. b3 {[%clk 00:00:54]}
{[%emt 00:00:39]} Bb5 {[%clk 00:00:24]} {[%emt 00:00:08]} 24. Rxc8 {[%clk
00:00:46]} {[%emt 00:00:09]} Rxc8 {[%clk 00:00:26]} 25. Bxb6 {[%clk 00:00:45]}
{[%emt 00:00:03]} axb6 {[%clk 00:00:25]} {[%emt 00:00:03]} 26. Ke3 {[%clk
00:00:45]} {[%emt 00:00:03]} Rc2 {[%clk 00:00:22]} {[%emt 00:00:05]} 27. Rd2
{[%clk 00:00:46]} Rc3 {[%clk 00:00:21]} {[%emt 00:00:05]} 28. g4 {[%clk
00:00:41]} {[%emt 00:00:06]} h6 {[%clk 00:00:20]} {[%emt 00:00:03]} 29. Ne1
{[%clk 00:00:33]} {[%emt 00:00:10]} Ke6 {[%clk 00:00:19]} {[%emt 00:00:03]} 30.
Rc2 {[%clk 00:00:33]} {[%emt 00:00:02]} Rxc2 {[%clk 00:00:10]} {[%emt
00:00:11]} 31. Nxc2 {[%clk 00:00:34]} g5 {[%clk 00:00:11]} 32. a4 {[%clk
00:00:34]} {[%emt 00:00:04]} Bc6 {[%clk 00:00:13]} 33. Na3 {[%clk 00:00:32]}
{[%emt 00:00:04]} Bg2 {[%clk 00:00:13]} {[%emt 00:00:02]} 34. Nc4 {[%clk
00:00:26]} {[%emt 00:00:08]} b5 {[%clk 00:00:09]} {[%emt 00:00:06]} 35. axb5
{[%clk 00:00:26]} Bxh3 {[%clk 00:00:09]} {[%emt 00:00:03]} 36. f3 {[%clk
00:00:27]} Kd5 {[%clk 00:00:06]} {[%emt 00:00:05]} 37. b4 {[%clk 00:00:25]}
{[%emt 00:00:05]} Bf1 {[%clk 00:00:04]} {[%emt 00:00:04]} 38. Na5 {[%clk
00:00:25]} {[%emt 00:00:02]} Kd6 {[%clk 00:00:04]} {[%emt 00:00:02]} 39. b6
{[%clk 00:00:25]} {[%emt 00:00:02]} f5 {[%clk 00:00:03]} {[%emt 00:00:03]} 40.
gxf5 h5 {[%emt 00:00:02]} 41. f6 {[%clk 00:00:26]} h4 {[%clk 00:00:06]} 42. f7
{[%clk 00:00:27]} Kd5 {[%emt 00:00:13]} 1-0